[Event "Warsaw Chess Open-B 2022"]
[Site "Warsaw"]
[Date "2022.07.23"]
[Round "6.3"]
[White "Kaczmarska, Joanna"]
[Black "Bem, Tymoteusz"]
[Result "1-0"]
[ECO "A05"]
[WhiteElo "1965"]
[BlackElo "1679"]
[Annotator "TA"]
[PlyCount "117"]
[EventDate "2022.07.18"]
[EventType "swiss"]
[EventCountry "POL"]
[SourceTitle "playchess.com"]
[Source "ChessBase"]
[SourceQuality "1"]
[TimeControl "40/5400+30:1800+30"]

{[%evp 18,117,29,0,45,53,44,0,0,0,0,0,0,0,0,0,0,0,-3,-17,0,-39,-34,-46,-10,-10,-20,-16,-2,-2,173,45,45,5,25,22,22,15,64,64,64,65,67,56,57,58,58,61,70,27,22,18,20,25,84,24,32,14,14,0,8,0,0,0,285,370,368,363,356,349,368,331,349,365,689,682,635,627,859,818,1242,936,1977,1814,1723,3424,29974,2342,1877,1751,1544,1544,1724,1460,29966,29958,29977,29977,29982,29982,29980,29982]} 1. Nf3 {[%emt 0:00:03]} Nf6 {[%emt 0:00:33]} 2. g3 {[%emt 0:00:05]} d5 {[%emt 0:00:31]} 3. Bg2 {[%emt 0:00:04]} g6 {[%emt 0:00:05]} 4. O-O {[%emt 0:00:17]} Bg7 {[%emt 0:00:32]} 5. d3 {[%emt 0:00:40]} O-O {[%emt 0:01:32]} 6. Nbd2 {[%emt 0:00:10]} c5 {[%emt 0:02:35]} 7. e4 {[%emt 0:01:18]} Nc6 {[%emt 0:01:32]} 8. c3 {[%emt 0:06:57]} dxe4 {[%emt 0:21:45]} 9. dxe4 {[%emt 0:01:01]} Qc7 {[%emt 0:03:21]} 10. Qe2 {[%emt 0:04:49]} (10. Nc4 $5 {[%cal Rc1f4]}) 10... b6 {[%emt 0:04:56] A08: King's Indian Attack.} 11. e5 {[%emt 0:07:17]} Ng4 {[%emt 0:22:27]} 12. h3 {[%emt 0:08:56]} (12. Re1 $14 {deserves consideration.}) 12... Ngxe5 $11 {[%emt 0:09:28] The position is equal.} 13. Nxe5 {[%emt 0:03:26]} Bxe5 {[%emt 0:00:06]} 14. Bxc6 {[%emt 0:01:10]} Qxc6 {[%emt 0:00:02]} 15. Qxe5 {[%emt 0:00:11]} Bxh3 {[%emt 0:00:05][%csl Gh3][%cal Rc6g2]} 16. Qe4 {[%emt 0:05:58] Inhibits Qg2+.} Qxe4 {[%emt 0:00:18]} 17. Nxe4 {[%emt 0:00:04]} Bxf1 {[%emt 0:00:05]} 18. Kxf1 {[%emt 0:00:05] [#]} Kg7 $146 {[%emt 0:01:59]} ({Predecessor:} 18... Rfd8) 19. f4 {[%emt 0:04:02]} Rad8 {[%emt 0:02:54]} 20. Be3 {[%emt 0:01:53]} h5 {[%emt 0:03:35]} 21. Ke2 {[%emt 0:06:54]} Rfe8 {[%emt 0:01:25]} 22. Rf1 {[%emt 0:10:11]} Rd5 {[%emt 0:04:23]} 23. c4 {[%emt 0:05:30]} Rf5 {[%emt 0:01:22]} (23... Rdd8 $11 {and Black has nothing to worry.}) 24. Bd2 {[%emt 0:00:43]} ({White has to play} 24. Rd1 $18) 24... f6 {[%emt 0:05:39]} 25. Bc3 {[%emt 0:14:51][%mdl 1024] White has compensation.} Kf7 {[%emt 0:05:52]} 26. Rh1 {[%emt 0:08:59]} Rd8 {[%emt 0:01:48]} 27. Ke3 {[%emt 0:00:40]} e5 {[%emt 0:01:35]} (27... Rd7 $11) 28. fxe5 $14 {[%emt 0:00:44]} fxe5 {[%emt 0:00:30]} 29. a3 $1 {[%emt 0:05:50]} a5 {[%emt 0:00:45]} 30. b4 {[%emt 0:01:00]} axb4 {[%emt 0:00:02]} 31. axb4 {[%emt 0:00:11]} cxb4 {[%emt 0:02:44]} 32. Bxb4 {[%emt 0:00:12]} Kg7 {[%emt 0:00:49]} 33. Ra1 {[%emt 0:00:50]} (33. Bc3 $5 {[%cal Rh1b1]}) 33... Rd4 {[%emt 0:00:56]} 34. Nd6 {[%emt 0:01:19]} Rg5 {[%emt 0:00:37]} (34... Rf8 35. Ra7+ (35. Nb5 Rxc4 36. Ra7+ Kg8 $16) 35... Kg8 36. Nb5 Rxc4 37. Bxf8 Kxf8 38. Nd6 Rc3+ 39. Kf2 $16) 35. Ra7+ {[%emt 0:00:10]} Kg8 {[%emt 0:00:17]} (35... Kf6 $11 {remains equal.} 36. Ne8+ (36. Ne4+ Rxe4+ 37. Kxe4 Rxg3 $11) 36... Kf5 37. Ng7+ Kg4) 36. Ne4 {[%emt 0:01:16] White is more active.} (36. Ne8 $1 $16 {[%cal Re8f6] Nf6+ would kill now.} Rf5 37. Rg7+ Kh8 38. Rxg6) 36... Rf5 $11 {[%emt 0:00:24]} 37. Ra8+ {[%emt 0:00:22]} Kg7 {[%emt 0:00:33]} 38. Nd6 {[%emt 0:00:24]} Rf1 {[%emt 0:00:38] ...Rb1 is the strong threat.} 39. Ra7+ {[%emt 0:00:28]} Kg8 {[%emt 0:00:27]} 40. Rb7 {[%emt 0:00:32]} Rg1 $2 {[%emt 0:00:46][%mdl 8192] Black is on the road to losing.} (40... Rb1 $11 41. Rxb6 Rb3+ 42. Ke2 Rxb4 $1 43. Rxb4 Rxd6) 41. Ne4 $18 {[%emt 0:30:49]} Rf1 {[%emt 0:30:29] [#] Prevents Nf6+.} 42. Rb8+ $1 {[%emt 0:00:19]} Kg7 {[%emt 0:00:22]} 43. Bc3 {[%emt 0:00:21][%mdl 64] Skewer} ({Less strong is} 43. Rxb6 Rxc4 44. Rb7+ Kh8 $14) 43... Rfd1 {[%emt 0:00:40]} 44. Bxd4 {[%emt 0:00:09]} Rxd4 {[%emt 0:00:26][%mdl 4096] Endgame KRN-KR} 45. Rb7+ {[%emt 0:00:32]} ({Don't play} 45. Rxb6 Rxc4 46. Re6 Rc1 $18) 45... Kh6 $2 (45... Kf8 46. Rxb6 Rxc4 47. Rxg6 Ra4) 46. Nd2 {[%emt 0:00:25]} Rd6 {[%emt 0:00:53]} 47. Nf3 {[%emt 0:00:15]} Rc6 {[%emt 0:00:43]} 48. Nxe5 {[%emt 0:00:08]} Re6 {[%emt 0:00:30]} 49. Ke4 {[%emt 0:00:34] Hoping for Kd5.} Kg5 {[%emt 0:00:26]} 50. Kd5 {[%emt 0:01:34]} Rf6 {[%emt 0:00:01]} 51. Rg7 {[%emt 0:00:39][%cal Og7g6] White wants to mate with Rxg6+!} Kf5 {[%emt 0:00:54] [#]} 52. Rxg6 $1 {[%emt 0:00:36][%mdl 512]} Rf8 {[%emt 0:00:39]} 53. Rxb6 {[%emt 0:00:20]} Re8 {[%emt 0:00:21]} 54. Nd3 {[%emt 0:00:37]} Re3 {[%emt 0:00:30]} 55. Nf4 {[%emt 0:00:10] Threatens to win with c5.} Re5+ {[%emt 0:00:28]} 56. Kd6 {[%emt 0:00:40] White mates.} Re4 {[%emt 0:00:19]} 57. c5 {[%emt 0:00:39][%cal Bc4c5,Bc5c6][%mdl 32]} h4 {[%emt 0:00:09] [#]} 58. gxh4 $1 {[%emt 0:00:22]} Kxf4 {[%emt 0:00:03]} (58... Rxf4 59. c6) 59. c6 {[%emt 0:00:24] Weighted Error Value: White=0.14 (very precise) /Black=0.79} 1-0

[Event "Warsaw Chess Open-B 2022"]
[Site "Warsaw"]
[Date "2022.07.23"]
[Round "6.4"]
[White "Rzeszowski, Dominik"]
[Black "Nesterenko, Kyrylo"]
[Result "1/2-1/2"]
[ECO "B22"]
[WhiteElo "1856"]
[BlackElo "1782"]
[Annotator "NA RC COMBH"]
[PlyCount "47"]
[EventDate "2022.07.18"]
[EventType "swiss"]
[EventCountry "POL"]
[SourceTitle "playchess.com"]
[Source "ChessBase"]
[SourceQuality "1"]
[TimeControl "40/5400+30:1800+30"]

1. e4 {[%emt 0:03:12]} c5 {[%emt 0:00:57]} 2. c3 {[%emt 0:00:05]} Nf6 {[%emt 0:00:07]} 3. e5 {[%emt 0:00:07]} Nd5 {[%emt 0:00:06]} 4. Nf3 {[%emt 0:00:06]} Nc6 {[%emt 0:00:43]} 5. Bc4 {[%emt 0:00:06]} e6 {[%emt 0:02:07]} 6. d4 {[%emt 0:00:19]} cxd4 {[%emt 0:00:10]} 7. cxd4 {[%emt 0:00:21]} d6 {[%emt 0:00:08]} 8. O-O {[%emt 0:01:48]} Be7 {[%emt 0:00:25]} 9. Qe2 {[%emt 0:02:06]} O-O {[%emt 0:00:43]} 10. a3 {[%emt 0:02:33]} Kh8 {[%emt 0:15:23]} 11. Bd3 {[%emt 0:04:49]} Qb6 {[%emt 0:01:15]} 12. Qe4 {[%emt 0:07:00]} f5 {[%emt 0:08:30]} 13. exf6 {[%emt 0:00:10]} Nxf6 {[%emt 0:00:06]} 14. Qh4 {[%emt 0:00:02]} e5 {[%emt 0:06:09]} 15. dxe5 {[%emt 0:23:07]} dxe5 {[%emt 0:10:32]} 16. Bg5 {[%emt 0:08:49]} e4 {[%emt 0:02:29]} 17. Bxe4 {[%emt 0:06:03]} Nxe4 {[%emt 0:03:23]} 18. Bxe7 {[%emt 0:02:30]} Nxe7 {[%emt 0:02:09]} 19. Qxe4 Nc6 {[%emt 0:03:48]} 20. b4 {[%emt 0:03:25]} Bf5 21. Qe3 Qxe3 22. fxe3 Rae8 23. Kf2 Bg4 24. Re1 1/2-1/2

[Event "Warsaw Chess Open-B 2022"]
[Site "Warsaw"]
[Date "2022.07.23"]
[Round "6.5"]
[White "Nocek, Dominik"]
[Black "Trybowska, Barbara"]
[Result "0-1"]
[ECO "C05"]
[WhiteElo "1682"]
[BlackElo "1828"]
[Annotator "NA RC COMBH"]
[PlyCount "112"]
[EventDate "2022.07.18"]
[EventType "swiss"]
[EventCountry "POL"]
[SourceTitle "playchess.com"]
[Source "ChessBase"]
[SourceQuality "1"]
[TimeControl "40/5400+30:1800+30"]

1. e4 {[%emt 0:00:02]} e6 {[%emt 0:00:05]} 2. d4 {[%emt 0:00:06]} d5 {[%emt 0:00:03]} 3. Nd2 {[%emt 0:00:08]} Nf6 {[%emt 0:00:04]} 4. e5 {[%emt 0:00:07]} Nfd7 {[%emt 0:00:04]} 5. Bd3 {[%emt 0:00:11]} c5 {[%emt 0:00:06]} 6. c3 {[%emt 0:00:08]} Nc6 {[%emt 0:00:04]} 7. Ne2 {[%emt 0:00:11]} Qb6 {[%emt 0:00:52]} 8. Nf3 {[%emt 0:00:16]} cxd4 {[%emt 0:00:29]} 9. cxd4 {[%emt 0:00:11]} f6 {[%emt 0:00:59]} 10. exf6 {[%emt 0:00:12]} Nxf6 {[%emt 0:00:03]} 11. O-O {[%emt 0:00:17]} Bd6 {[%emt 0:00:06]} 12. Bf4 {[%emt 0:02:36]} Bxf4 {[%emt 0:01:09]} 13. Nxf4 {[%emt 0:00:03]} O-O {[%emt 0:00:19]} 14. Qd2 {[%emt 0:09:47]} Qc7 {[%emt 0:16:55]} 15. g3 {[%emt 0:28:36]} Bd7 {[%emt 0:12:01]} 16. Rac1 {[%emt 0:07:14]} Qd6 {[%emt 0:07:26]} 17. Rfe1 {[%emt 0:10:53]} Rae8 {[%emt 0:03:29]} 18. Ne5 {[%emt 0:08:20]} Kh8 {[%emt 0:05:35]} 19. Bb1 {[%emt 0:02:53]} Nd8 {[%emt 0:12:24]} 20. h4 {[%emt 0:09:09]} Nf7 {[%emt 0:02:14]} 21. Kg2 {[%emt 0:04:14]} Nh6 {[%emt 0:03:25]} 22. f3 {[%emt 0:11:20]} Nf5 {[%emt 0:03:31]} 23. Rh1 {[%emt 0:01:26]} Bb5 {[%emt 0:12:17]} 24. g4 {[%emt 0:00:53]} Ne7 {[%emt 0:00:17]} 25. Nh3 {[%emt 0:02:22]} Nc6 {[%emt 0:01:23]} 26. Rce1 {[%emt 0:00:34]} Qb4 {[%emt 0:04:57]} 27. Qxb4 {[%emt 0:00:17]} Nxb4 {[%emt 0:00:04]} 28. Ng5 {[%emt 0:01:05]} Kg8 {[%emt 0:00:12]} 29. a3 {[%emt 0:00:09]} Na6 {[%emt 0:00:21]} 30. h5 {[%emt 0:00:30]} h6 {[%emt 0:00:20]} 31. Ngf7 {[%emt 0:00:31]} Rxf7 {[%emt 0:00:42]} 32. Nxf7 {[%emt 0:00:08]} Kxf7 {[%emt 0:00:07]} 33. Bg6+ {[%emt 0:00:02]} Ke7 {[%emt 0:00:23]} 34. Bxe8 {[%emt 0:00:03]} Nxe8 {[%emt 0:00:57]} 35. Rc1 {[%emt 0:00:59]} Bc4 {[%emt 0:00:39]} 36. b3 {[%emt 0:00:12]} Bb5 {[%emt 0:01:07]} 37. Rc3 {[%emt 0:00:51]} Nb8 {[%emt 0:00:53]} 38. Rhc1 {[%emt 0:00:46]} Nc6 {[%emt 0:00:29]} 39. Rd1 {[%emt 0:00:57]} Nd6 {[%emt 0:00:35]} 40. Kf2 {[%emt 0:00:39]} Nf7 {[%emt 0:02:11]} 41. Ke3 {[%emt 0:30:43]} Kd6 {[%emt 0:30:52]} 42. Rc5 {[%emt 0:00:54]} Nxd4 {[%emt 0:00:16]} 43. Rxd5+ {[%emt 0:00:31]} exd5 {[%emt 0:00:31]} 44. Rxd4 {[%emt 0:00:14]} Ne5 {[%emt 0:00:33]} 45. a4 {[%emt 0:00:31]} Ba6 {[%emt 0:00:55]} 46. Kf4 {[%emt 0:00:30]} b6 {[%emt 0:00:10]} 47. Rd2 {[%emt 0:00:44]} Bc8 {[%emt 0:01:13]} 48. Re2 {[%emt 0:00:23]} Nd3+ {[%emt 0:00:11]} 49. Ke3 {[%emt 0:00:15]} Nc5 {[%emt 0:00:52]} 50. Rc2 {[%emt 0:00:42]} a5 {[%emt 0:00:32]} 51. Kd4 {[%emt 0:00:33]} Nxb3+ {[%emt 0:00:11]} 52. Kc3 {[%emt 0:00:32]} Nc5 {[%emt 0:00:07]} 53. Kd4 {[%emt 0:00:10]} Ba6 {[%emt 0:00:29]} 54. Rg2 {[%emt 0:00:20]} Ne6+ {[%emt 0:00:37]} 55. Ke3 {[%emt 0:00:14]} d4+ {[%emt 0:00:45]} 56. Ke4 {[%emt 0:00:20]} Bb7+ {[%emt 0:00:13]} 0-1

[Event "Warsaw Chess Open-B 2022"]
[Site "Warsaw"]
[Date "2022.07.23"]
[Round "6.6"]
[White "Masalski, Pawel"]
[Black "Vasynda, Oleksandr"]
[Result "1-0"]
[ECO "B22"]
[WhiteElo "1550"]
[BlackElo "1802"]
[Annotator "NA RC COMBH"]
[PlyCount "87"]
[EventDate "2022.07.18"]
[EventType "swiss"]
[EventCountry "POL"]
[SourceTitle "playchess.com"]
[Source "ChessBase"]
[SourceQuality "1"]
[TimeControl "40/5400+30:1800+30"]

1. e4 {[%emt 0:09:51]} c5 {[%emt 0:00:07]} 2. c3 {[%emt 0:00:54]} d5 {[%emt 0:00:17]} 3. exd5 {[%emt 0:00:05]} Qxd5 {[%emt 0:00:08]} 4. d4 {[%emt 0:00:13]} e5 {[%emt 0:01:11]} 5. dxe5 {[%emt 0:01:12]} Qxe5+ {[%emt 0:00:20]} 6. Be2 {[%emt 0:04:33]} Bg4 {[%emt 0:06:57]} 7. Nd2 {[%emt 0:00:31]} Bxe2 {[%emt 0:05:02]} 8. Nxe2 {[%emt 0:01:02]} Nf6 {[%emt 0:09:56]} 9. Nf3 {[%emt 0:07:01]} Qd5 {[%emt 0:00:51]} 10. Qa4+ {[%emt 0:02:46]} Qc6 {[%emt 0:00:37]} 11. Qb3 {[%emt 0:00:44]} Bd6 {[%emt 0:02:01]} 12. O-O {[%emt 0:01:43]} O-O {[%emt 0:00:46]} 13. Ng3 {[%emt 0:01:27]} Bxg3 {[%emt 0:02:53]} 14. hxg3 {[%emt 0:00:11]} Nbd7 {[%emt 0:00:45]} 15. Rd1 {[%emt 0:03:38]} Rfe8 {[%emt 0:00:46]} 16. Bf4 {[%emt 0:00:03]} b6 {[%emt 0:11:50]} 17. Rd6 {[%emt 0:01:29]} Qe4 {[%emt 0:00:20]} 18. Rad1 {[%emt 0:04:53]} Re7 {[%emt 0:04:05]} 19. Qb5 {[%emt 0:08:47]} Rae8 {[%emt 0:09:14]} 20. Qc6 {[%emt 0:03:07]} Qc2 {[%emt 0:09:09]} 21. R6d2 {[%emt 0:00:43]} Qf5 {[%emt 0:02:20]} 22. Qa4 {[%emt 0:06:48]} h6 {[%emt 0:04:25]} 23. Bd6 {[%emt 0:05:33]} Re6 {[%emt 0:08:07]} 24. Bf4 {[%emt 0:01:56]} R6e7 {[%emt 0:03:15]} 25. Bd6 {[%emt 0:07:24]} Re6 {[%emt 0:00:07]} 26. Bc7 {[%emt 0:01:51]} R6e7 {[%emt 0:11:46]} 27. Qxa7 {[%emt 0:03:23]} Qe4 {[%emt 0:02:16]} 28. Qa6 {[%emt 0:08:57]} Ra8 {[%emt 0:01:02]} 29. Qb5 {[%emt 0:01:02]} Rxa2 {[%emt 0:01:05]} 30. Bxb6 {[%emt 0:01:45]} Nxb6 {[%emt 0:01:59]} 31. Qxb6 {[%emt 0:02:02]} Rb7 {[%emt 0:00:08]} 32. Qd8+ {[%emt 0:01:04]} Kh7 {[%emt 0:00:05]} 33. Re1 {[%emt 0:00:26]} Qf5 {[%emt 0:01:09]} 34. Nh4 {[%emt 0:00:16]} Qg5 {[%emt 0:01:26]} 35. Qd3+ {[%emt 0:00:18]} g6 {[%emt 0:00:33]} 36. Nf3 {[%emt 0:00:15]} Qh5 {[%emt 0:00:45]} 37. Qc4 {[%emt 0:00:50]} Raa7 {[%emt 0:00:27]} 38. Qf4 {[%emt 0:01:18]} Kg7 {[%emt 0:00:32]} 39. Rd6 {[%emt 0:00:48]} Ng4 {[%emt 0:00:37]} 40. Rd8 {[%emt 0:00:56]} Rxb2 {[%emt 0:00:18]} 41. Qd6 {[%emt 0:31:38]} Ra6 {[%emt 0:30:48]} 42. Qf8+ {[%emt 0:01:08]} Kf6 {[%emt 0:00:02]} 43. Qh8+ {[%emt 0:00:01]} Kf5 {[%emt 0:00:07]} 44. Rd5+ {[%emt 0:00:16]} 1-0

[Event "Warsaw Chess Open-B 2022"]
[Site "Warsaw"]
[Date "2022.07.23"]
[Round "6.7"]
[White "Rzenca, Jerzy"]
[Black "Ryszkiewicz, Adam"]
[Result "1/2-1/2"]
[ECO "A20"]
[WhiteElo "1668"]
[BlackElo "1977"]
[Annotator "TA"]
[PlyCount "102"]
[EventDate "2022.07.18"]
[EventType "swiss"]
[EventCountry "POL"]
[SourceTitle "playchess.com"]
[Source "ChessBase"]
[SourceQuality "1"]
[TimeControl "40/5400+30:1800+30"]

{[%evp 9,102,34,50,40,32,33,33,33,29,26,69,68,53,49,80,19,15,18,31,31,33,15,47,24,31,30,143,143,132,129,133,133,158,130,181,206,231,223,251,204,258,251,245,212,202,147,149,148,147,145,145,145,144,144,183,181,184,178,254,257,259,259,242,257,390,366,660,667,851,834,698,688,915,862,1016,609,1006,790,768,761,606,534,486,367,367,375,768,735,668,475,468,0,0,0,0]} 1. c4 {[%emt 0:01:43]} e5 {[%emt 0:00:05]} 2. g3 {[%emt 0:00:06]} c6 {[%emt 0:00:07]} 3. d4 {[%emt 0:00:17]} Bb4+ {[%emt 0:01:29]} 4. Bd2 {[%emt 0:01:21]} Qa5 {[%emt 0:02:06] [#]} 5. a3 $146 {[%emt 0:02:23]} ({Predecessor:} 5. dxe5 Bxd2+ 6. Qxd2 Qxe5 7. Nf3 Qc5 8. Nc3 Nf6 9. e4 O-O 10. O-O-O b5 11. e5 {1-0 (35) Vavruska,D (2234)-Machala,V (2052) Czech Republic 2018}) 5... Bxd2+ {[%emt 0:00:08]} 6. Qxd2 {[%emt 0:00:03] A20: English Opening: 1...e5.} Qxd2+ {[%emt 0:00:22]} 7. Nxd2 {[%emt 0:00:05]} exd4 {[%emt 0:02:34]} 8. Ngf3 {[%emt 0:00:07] White is slightly better.} Nf6 {[%emt 0:00:28]} 9. Nxd4 {[%emt 0:00:44]} O-O {[%emt 0:01:25]} 10. Bg2 {[%emt 0:27:40]} d6 {[%emt 0:03:01]} 11. O-O {[%emt 0:04:42]} Rd8 {[%emt 0:03:34]} 12. Ne4 {[%emt 0:04:20]} ({White should play} 12. b4 $16) 12... Nxe4 $11 {[%emt 0:00:22]} 13. Bxe4 {[%emt 0:00:02]} Nd7 {[%emt 0:00:49]} 14. Rfd1 {[%emt 0:05:47]} Nf6 {[%emt 0:05:15]} 15. Bf3 {[%emt 0:04:21]} a6 {[%emt 0:11:11]} 16. Rac1 {[%emt 0:04:04]} Be6 {[%emt 0:07:26]} 17. b4 {[%emt 0:09:54][%cal Bb2b4,Bb4b5][%mdl 32]} Rd7 {[%emt 0:19:42] [#]} (17... h5 $11) 18. Nxc6 $1 $16 {[%emt 0:05:12][%mdl 512]} Rc8 {[%emt 0:02:54]} 19. Na5 {[%emt 0:00:54]} b6 {[%emt 0:00:06]} 20. Nc6 {[%emt 0:01:14]} Kf8 {[%emt 0:00:09]} 21. b5 {[%emt 0:01:27]} a5 {[%emt 0:00:15]} (21... axb5 $16 {keeps fighting.} 22. cxb5 d5) 22. Rd4 $18 {[%emt 0:01:58]} h6 {[%emt 0:04:14]} 23. Rcd1 {[%emt 0:01:02]} Ne8 {[%emt 0:00:07]} 24. e4 {[%emt 0:01:45]} f6 {[%emt 0:00:05]} 25. Bh5 {[%emt 0:00:03]} Rdc7 {[%emt 0:06:19]} 26. Bxe8 {[%emt 0:09:18]} Kxe8 {[%emt 0:02:00]} 27. f3 {[%emt 0:02:21]} Bd7 {[%emt 0:00:38]} 28. Rxd6 {[%emt 0:00:29] White is much more active.} Bxc6 {[%emt 0:00:04]} 29. bxc6 {[%emt 0:00:59]} Rxc6 {[%emt 0:00:06]} 30. Rxc6 {[%emt 0:00:33]} Rxc6 $16 {[%emt 0:00:04][%mdl 4096] Endgame KR-KR} 31. Rd4 {[%emt 0:00:25]} Ke7 {[%emt 0:00:27]} 32. Kf2 {[%emt 0:00:24]} Rc5 {[%emt 0:02:16] [#]} 33. a4 $1 {[%emt 0:01:16] Against b5} Rh5 {[%emt 0:00:56]} (33... f5 $142 34. Ke3 fxe4) 34. h4 $18 {[%emt 0:01:50][%cal Bh2h4,Bh4h5][%mdl 32] Rd5 is the strong threat.} Rc5 {[%emt 0:01:05]} 35. Ke3 {[%emt 0:00:19]} g5 {[%emt 0:02:47]} 36. h5 g4 {[%emt 0:00:58]} (36... Ke6 $142 37. g4 Rc6) 37. fxg4 {[%emt 0:03:57]} Rg5 $2 {[%emt 0:03:44]} (37... Rc8 38. g5 fxg5) 38. Rd5 {[%emt 0:00:46]} Rxg4 {[%emt 0:00:07]} 39. Kf3 {[%emt 0:00:08]} Rg8 {[%emt 0:00:21]} 40. c5 Rb8 {[%emt 0:03:49]} 41. cxb6 {[%emt 0:30:48]} Rxb6 {[%emt 0:30:05]} 42. Rxa5 {[%emt 0:00:07]} Rb1 {[%emt 0:00:08]} 43. Rb5 {[%emt 0:01:41]} Rf1+ {[%emt 0:00:39]} 44. Kg4 {[%emt 0:00:14]} Ke6 {[%emt 0:00:22]} 45. Rb8 Ra1 {[%emt 0:01:02]} 46. Re8+ {[%emt 0:05:52]} Kf7 {[%emt 0:00:00]} 47. Ra8 {[%emt 0:00:29] Hoping for a5.} Ke6 $2 {[%emt 0:00:24]} (47... Re1 48. a5 Rxe4+ 49. Kf3 Re5) 48. a5 {[%emt 0:00:30] And now a6 would win.} Ke5 {[%emt 0:00:30]} 49. a6 {[%emt 0:00:48] Threatening mate with a7.} ({Not} 49. Rh8 Kxe4 50. Rxh6 Ke5 $16) 49... Kxe4 {[%emt 0:00:04] [#]} 50. a7 $2 {[%emt 0:00:21]} (50. Re8+ $1 $18 Kd5 51. Kf5) 50... f5+ $1 $11 51. Kh3 {[%emt 0:00:05] Re8+ would kill now.} Kf3 {[%emt 0:00:36] Weighted Error Value: White=0.13 (very precise) /Black=0.34} 1/2-1/2

[Event "Warsaw Chess Open-B 2022"]
[Site "Warsaw"]
[Date "2022.07.23"]
[Round "6.8"]
[White "Sidorczuk, Pawel"]
[Black "Wieckowski, Michal"]
[Result "1/2-1/2"]
[ECO "A06"]
[WhiteElo "1962"]
[BlackElo "1669"]
[Annotator "TA"]
[PlyCount "42"]
[EventDate "2022.07.18"]
[EventType "swiss"]
[EventCountry "POL"]
[SourceTitle "playchess.com"]
[Source "ChessBase"]
[SourceQuality "1"]
[TimeControl "40/5400+30:1800+30"]

{[%evp 9,42,1,3,2,7,-30,9,2,4,2,8,7,7,-1,0,1,3,-26,-13,-25,-10,-18,-7,-20,-20,-19,-8,-23,-10,-32,-25,-44,-39,-53,-49]} 1. Nf3 {[%emt 0:00:02]} d5 {[%emt 0:00:46]} 2. g3 {[%emt 0:00:05]} Nf6 {[%emt 0:00:14]} 3. Bg2 {[%emt 0:00:04]} Bg4 {[%emt 0:01:06]} 4. h3 {[%emt 0:00:59]} Bxf3 {[%emt 0:00:18]} 5. Bxf3 {[%emt 0:00:03]} Nbd7 {[%emt 0:00:52]} 6. d4 {[%emt 0:03:48] A07: Réti Opening: New York and Capablanca Systems.} e6 {[%emt 0:00:59] [#]} 7. Bf4 $146 {[%emt 0:02:04][%cal Oc2c4]} ({Predecessor:} 7. O-O c6 8. Nd2 Bd6 9. e4 dxe4 10. Nxe4 Nxe4 11. Bxe4 O-O 12. Bg2 Qc7 13. c4 {1-0 (43) Domingo Nunez,A (2335)-Holt,C (2553) Chess.com INT 2022}) 7... Nb6 {[%emt 0:10:55]} 8. O-O {[%emt 0:05:20] The position is equal.} Bd6 {[%emt 0:01:20]} 9. e3 {[%emt 0:01:03]} O-O {[%emt 0:02:21]} 10. Nd2 {[%emt 0:07:21]} c6 {[%emt 0:09:23][%cal Bc7c6,Bc6c5][%mdl 32]} 11. Bg2 {[%emt 0:17:58]} Re8 {[%emt 0:02:13]} 12. Bxd6 {[%emt 0:06:17]} Qxd6 {[%emt 0:00:02]} 13. f4 {[%emt 0:00:05]} c5 {[%emt 0:03:45]} 14. c3 {[%emt 0:01:26]} Rac8 {[%emt 0:02:02]} 15. Re1 {[%emt 0:07:53]} Re7 {[%emt 0:13:27]} 16. Qf3 {[%emt 0:03:45]} Na4 {[%emt 0:02:17]} 17. Rab1 {[%emt 0:01:19]} b5 {[%emt 0:00:32]} 18. Bf1 {[%emt 0:09:05]} b4 {[%emt 0:04:04]} 19. cxb4 {[%emt 0:00:04]} cxd4 {[%emt 0:01:16]} 20. a3 {[%emt 0:08:47]} Rc2 {[%emt 0:04:26][%csl LRb2,LRd2]} 21. Qd1 {[%emt 0:08:10]} Rxb2 {[%emt 0:02:55] Weighted Error Value: White=0.08 (flawless) /Black=0.07 (flawless)} 1/2-1/2